bitfinex-derivatives/quotes_BTCF0:USTF0_20241122
["timestamp","ask_amount","ask_price","bid_price","bid_amount"]
[1732238856984,0.01379452,98276.0,98275.0,0.00139779]
[1732238857180,0.01379452,98276.0,98275.0,0.26139779]
[1732238858486,0.01379452,98276.0,98275.0,0.38139779]
[1732238858880,0.01379452,98276.0,98275.0,0.21139779]
[1732238859275,0.01391466,98276.0,98275.0,0.33139779]
[1732238859478,0.03644871,98276.0,98275.0,0.21139779]
[1732238859788,0.03644871,98276.0,98275.0,0.36139779]
[1732238859973,0.0564736,98276.0,98275.0,0.36139779]
[1732238860177,0.01391466,98276.0,98275.0,0.72219779]
[1732238860480,0.05668861,98276.0,98275.0,0.74219779]
[1732238860679,0.05668861,98276.0,98275.0,0.66219779]
[1732238860888,0.05668861,98276.0,98275.0,0.74219779]
[1732238861677,0.01391466,98276.0,98275.0,0.48219779]
[1732238861880,0.03398874,98276.0,98275.0,0.77219779]
[1732238862186,0.03427832,98276.0,98275.0,0.77219779]
[1732238862383,0.05715771,98276.0,98275.0,0.77219779]
[1732238862782,0.05753497,98276.0,98275.0,0.77219779]
[1732238863880,0.03465105,98276.0,98275.0,0.77219779]
[1732238865598,0.05727656,98276.0,98275.0,0.77219779]
[1732238866086,0.05711505,98276.0,98275.0,0.77219779]
[1732238866476,0.05693428,98276.0,98275.0,0.77219779]
[1732238868780,0.05693428,98276.0,98275.0,0.73219779]
[1732238871578,0.05693428,98276.0,98275.0,0.67219779]
[1732238871782,0.05693428,98276.0,98275.0,0.48219779]
[1732238871982,0.05693428,98276.0,98275.0,0.67219779]
[1732238872183,0.05693428,98276.0,98275.0,0.76219779]
[1732238872481,0.05693428,98276.0,98275.0,0.48219779]
[1732238872688,0.05693428,98276.0,98275.0,0.56219779]
[1732238872887,0.0555593,98276.0,98275.0,0.56219779]
[1732238873186,0.0555593,98276.0,98275.0,0.67219779]
[1732238873383,0.06826334,98276.0,98275.0,0.55219779]
[1732238873778,0.06826334,98276.0,98275.0,0.57219779]
[1732238874072,0.06826334,98276.0,98275.0,0.67219779]
[1732238874478,0.06826334,98276.0,98275.0,0.75219779]
[1732238875674,0.06826334,98276.0,98275.0,0.66219779]
[1732238875884,0.06826334,98276.0,98275.0,0.66359508]
[1732238876189,0.00012685,98278.0,98275.0,0.78359508]
[1732238876489,0.050814,98276.0,98275.0,0.63359508]
[1732238876683,0.07100715,98276.0,98275.0,0.63359508]
[1732238876877,0.11825013,98276.0,98275.0,0.63359508]
[1732238877084,0.11825013,98276.0,98275.0,0.76359508]
[1732238877485,0.11825013,98276.0,98275.0,0.65359508]
[1732238877786,0.20927695,98276.0,98275.0,0.65359508]
[1732238877975,0.20927695,98276.0,98275.0,0.48359508]
[1732238878181,0.11825013,98276.0,98275.0,0.69359508]
[1732238878880,0.48425276,98276.0,98275.0,0.00279508]
[1732238879087,0.050822,98261.0,98260.0,0.0102]
[1732238879284,0.1720042,98261.0,98260.0,0.34]
[1732238879590,0.13601755,98261.0,98260.0,0.34]
[1732238879888,0.11092,98261.0,98260.0,0.34]
[1732238881088,0.17872755,98261.0,98260.0,0.34]
[1732238881289,0.32093274,98261.0,98260.0,0.34]
[1732238881477,0.32093274,98261.0,98260.0,0.21]
[1732238881675,0.22954955,98261.0,98260.0,0.07]
[1732238881890,0.22319648,98261.0,98260.0,0.12]
[1732238882379,0.21684341,98261.0,98260.0,0.12]
[1732238882778,0.21684341,98261.0,98260.0,0.31]
[1732238882976,0.57764341,98261.0,98260.0,0.02]
[1732238883183,0.05083,98246.0,98245.0,0.371]
[1732238883385,0.06474493,98246.0,98245.0,0.5308]
[1732238883587,0.08664779,98246.0,98245.0,0.58121456]
[1732238883783,0.06474493,98246.0,98245.0,0.58121456]
[1732238883993,0.06474493,98246.0,98245.0,0.16041456]
[1732238884290,0.08651882,98246.0,98245.0,0.32041456]
[1732238884598,0.08650691,98246.0,98245.0,0.32041456]
[1732238884898,0.06474493,98246.0,98245.0,0.19041456]
[1732238885089,0.0864939,98246.0,98245.0,0.19041456]
[1732238885392,0.06474493,98246.0,98245.0,0.29041456]
[1732238885890,0.08703662,98246.0,98245.0,0.42041456]
[1732238886078,0.01391493,98246.0,98245.0,0.37041456]
[1732238886386,0.11092,98250.0,98245.0,0.37041456]
[1732238886578,0.01393187,98246.0,98245.0,0.37041456]
[1732238887389,0.01393187,98246.0,98245.0,0.27041456]
[1732238887891,0.01393187,98246.0,98245.0,0.16041456]
[1732238888091,0.01393187,98246.0,98245.0,0.41041456]
[1732238888792,0.0072,98258.0,98245.0,0.81197456]
[1732238889094,0.0072,98264.0,98262.0,0.050822]
[1732238889280,0.161737,98272.0,98262.0,0.490822]
[1732238889484,0.161737,98272.0,98265.0,0.3608]
[1732238889485,0.06459366,98271.0,98265.0,0.3608]
[1732238889779,0.01377666,98270.0,98267.0,0.050819]
[1732238889986,0.01377666,98269.0,98267.0,0.43]
[1732238890384,0.01377666,98268.0,98267.0,0.43]
[1732238891695,0.01377666,98268.0,98267.0,0.48183965]
[1732238891893,0.01377666,98268.0,98267.0,0.53265865]
[1732238893300,0.0072,98279.0,98277.0,0.050814]
[1732238893498,0.11244633,98286.0,98277.0,0.861614]
[1732238894016,0.058007,98290.0,98277.0,0.861614]
[1732238894017,0.0072,98290.0,98277.0,0.8616704]
[1732238895701,0.0072,98290.0,98277.0,1.1669104]
[1732238895887,0.0072,98290.0,98288.0,0.050808]
[1732238896089,0.14182,98299.0,98289.0,0.3608]
[1732238896289,0.01335211,98298.0,98289.0,0.8208]
[1732238896488,0.0309,98299.0,98289.0,0.8208]
[1732238896901,0.0309,98299.0,98289.0,0.871608]
[1732238897396,0.0309,98299.0,98289.0,0.771608]
[1732238897601,0.0309,98299.0,98290.0,0.050807]
[1732238897785,0.0309,98299.0,98290.0,0.490807]
[1732238898196,0.1,98300.0,98299.0,0.050803]
[1732238898397,0.1,98300.0,98299.0,0.490803]
[1732238900601,0.1,98300.0,98299.0,0.49220026]
[1732238902600,0.1,98300.0,98299.0,0.54333749]
[1732238903001,0.0072,98312.0,98308.0,0.050798]
[1732238903208,0.0072,98318.0,98309.0,0.050797]
[1732238903398,0.11096102,98321.0,98309.0,0.490797]
[1732238903711,0.12910792,98320.0,98315.0,0.00139726]
[1732238904016,0.12910792,98320.0,98315.0,0.27139726]
[1732238904195,0.050793,98318.0,98315.0,0.27139726]
[1732238904705,0.12910792,98320.0,98316.0,0.00139726]
[1732238905011,0.12910792,98320.0,98316.0,0.19139726]
[1732238905601,0.12910792,98320.0,98316.0,0.28139726]
[1732238905803,0.12910792,98320.0,98318.0,0.00139726]
[1732238906003,0.12910792,98320.0,98318.0,0.17139726]
[1732238906703,0.00012102,98321.0,98318.0,0.17]
[1732238906906,0.00012102,98321.0,98319.0,0.0027943]
[1732238907106,0.00012102,98321.0,98319.0,0.2727943]
[1732238907901,0.0479977,98320.0,98319.0,0.27]
[1732238910709,0.0479977,98320.0,98319.0,0.17]
[1732238910920,0.0479977,98320.0,98319.0,0.07]
[1732238912404,0.06151376,98320.0,98319.0,0.07]
[1732238913513,0.72743376,98320.0,98299.0,0.08]
[1732238913717,0.411599,98307.0,98305.0,0.0508]
[1732238913908,0.3608,98307.0,98305.0,0.13]
[1732238914105,0.082299,98306.0,98305.0,0.2]
[1732238914614,0.09592875,98306.0,98305.0,0.2]
[1732238914910,0.09592875,98306.0,98305.0,0.36]
[1732238916214,0.04512975,98306.0,98305.0,0.4108]
[1732238916523,0.04512975,98306.0,98305.0,0.36]
[1732238917411,0.0315,98306.0,98305.0,0.36]
[1732238917714,0.04506434,98306.0,98305.0,0.35999999]
[1732238920415,0.06697275,98306.0,98305.0,0.16999999]
[1732238920612,0.06697275,98306.0,98305.0,0.06999999]
[1732238920815,0.06697275,98306.0,98305.0,0.19999999]
[1732238922310,0.06697275,98306.0,98305.0,0.06999999]
[1732238922515,0.06697275,98306.0,98305.0,0.07999999]
[1732238922516,0.08511628,98306.0,98305.0,0.07999999]
[1732238922715,0.08511628,98306.0,98305.0,0.06999999]
[1732238923606,0.08511628,98306.0,98305.0,0.21999999]
[1732238923916,0.08511628,98306.0,98305.0,0.20999999]
[1732238924308,0.08511628,98306.0,98305.0,0.10999999]
[1732238924508,0.0733233,98306.0,98305.0,0.06999999]
[1732238924716,0.09123714,98306.0,98305.0,0.06999999]
[1732238924910,0.39639714,98306.0,98305.0,0.02987314]
[1732238925111,0.76354806,98306.0,98305.0,0.02987314]
[1732238925319,0.050806,98293.0,98292.0,0.0102]
[1732238925519,0.08627875,98293.0,98292.0,0.20139739]
[1732238926012,0.08627875,98293.0,98292.0,0.38139739]
[1732238926212,0.03547275,98293.0,98292.0,0.38139739]
[1732238926423,0.01356434,98293.0,98292.0,0.43118525]
[1732238930619,0.0072,98305.0,98304.0,0.0508]
[1732238930826,0.11064,98312.0,98304.0,0.45]
[1732238931034,0.0220693,98311.0,98305.0,0.110999]
[1732238931220,0.02194284,98310.0,98305.0,0.5002]
[1732238931417,0.3608,98315.0,98305.0,0.5002]
[1732238931617,0.02194294,98314.0,98310.0,0.00139739]
[1732238931826,0.03993674,98313.0,98310.0,0.42139739]
[1732238932032,0.02194294,98312.0,98310.0,0.42139739]
[1732238932329,0.02194294,98311.0,98310.0,0.42139739]
[1732238933819,0.02194294,98311.0,98310.0,0.31139739]
[1732238934125,0.02194294,98311.0,98310.0,0.46174164]
[1732238934428,0.07273894,98311.0,98310.0,0.30174164]
[1732238935229,0.03989336,98311.0,98310.0,0.46174164]
[1732238935419,0.02194294,98311.0,98310.0,0.46174164]
[1732238936126,0.02194294,98311.0,98310.0,0.51253864]
[1732238936627,0.3608,98315.0,98310.0,0.51253864]
[1732238936933,0.050792,98319.0,98311.0,0.00012519]
[1732238937128,0.02179865,98318.0,98317.0,0.3608]
[1732238937329,0.11076102,98321.0,98317.0,0.821593]
[1732238937623,0.02179631,98320.0,98319.0,0.00139739]
[1732238937832,0.02179631,98320.0,98319.0,0.43139739]
[1732238938218,0.02179631,98320.0,98319.0,0.48218939]
[1732238938627,0.00012102,98321.0,98319.0,0.48218939]
[1732238938820,0.02200962,98320.0,98319.0,0.48218939]
[1732238941839,0.02200962,98320.0,98319.0,0.35218939]
[1732238942224,0.00012102,98321.0,98319.0,0.35218939]
[1732238942635,0.00012102,98321.0,98320.0,0.00139739]
[1732238942826,0.01392822,98321.0,98320.0,0.34139739]
[1732238943222,0.01392822,98321.0,98320.0,0.39218939]
[1732238943434,0.01392822,98321.0,98320.0,0.45218939]
[1732238943735,0.01392822,98321.0,98320.0,0.31139739]
[1732238944036,0.01392822,98321.0,98320.0,0.36099149]
[1732238944421,0.06471922,98321.0,98320.0,0.36099149]
[1732238944735,0.06471922,98321.0,98320.0,0.22139739]
[1732238944736,0.42551922,98321.0,98320.0,0.22139739]
[1732238944934,0.44764301,98321.0,98320.0,0.22139739]
[1732238945239,0.55824301,98321.0,98320.0,0.22139739]
[1732238945736,0.55824301,98321.0,98320.0,0.34139739]
[1732238945937,0.55824301,98321.0,98320.0,0.48139739]
[1732238946835,0.53611922,98321.0,98320.0,0.48139739]
[1732238947432,0.52231202,98321.0,98320.0,0.48139739]
[1732238947732,0.53611664,98321.0,98320.0,0.32139739]
[1732238949346,0.17531664,98321.0,98320.0,0.32139739]
[1732238949530,0.19744934,98321.0,98320.0,0.32139739]
[1732238949931,0.08684934,98321.0,98320.0,0.32139739]
[1732238950331,0.08684934,98321.0,98320.0,0.45139739]
[1732238950628,0.01392564,98321.0,98320.0,0.50218939]
[1732238951027,0.01392564,98321.0,98320.0,0.50358648]
[1732238954238,0.00012102,98321.0,98320.0,0.50358648]
[1732238954427,0.013982,98321.0,98320.0,0.50358648]
[1732238954832,0.00012102,98321.0,98320.0,0.50358648]
[1732238955039,0.013982,98321.0,98320.0,0.50358648]
[1732238956549,0.013982,98321.0,98320.0,0.40358648]
[1732238956937,0.01393291,98321.0,98320.0,0.40358648]
[1732238957130,0.01393291,98321.0,98320.0,0.52358648]
[1732238958139,0.00012102,98321.0,98320.0,0.52358648]
[1732238958451,0.06487406,98321.0,98320.0,0.47279448]
[1732238958742,0.01408306,98321.0,98320.0,0.42279448]
[1732238959045,0.01408306,98321.0,98320.0,0.47358648]
[1732238961536,0.01417301,98321.0,98320.0,0.47358648]
[1732238964636,0.01417301,98321.0,98320.0,0.83438648]
[1732238964954,0.00872617,98332.0,98331.0,0.050786]
[1732238964955,0.0072,98332.0,98331.0,0.050786]
[1732238965135,0.0072,98346.0,98331.0,0.82359448]
[1732238965337,0.0072,98351.0,98344.0,0.050779]
[1732238965643,0.0024,98351.0,98349.0,0.3608]
[1732238965849,0.0024,98351.0,98349.0,0.7708]
[1732238966037,0.0024,98351.0,98350.0,0.00279448]
[1732238966235,0.0024,98351.0,98350.0,0.46287792]
[1732238967243,0.0024,98351.0,98350.0,0.44365392]
[1732238968246,0.0024,98351.0,98350.0,0.39287792]
[1732238969440,0.0024,98351.0,98350.0,0.44299803]
[1732238970544,0.0024,98351.0,98350.0,0.35299803]
[1732238970741,0.0024,98351.0,98350.0,0.45299803]
[1732238973342,0.0024,98351.0,98350.0,0.51509803]
[1732238976443,0.0024,98351.0,98350.0,0.87589803]
[1732238981451,0.0024,98351.0,98350.0,0.84539803]
[1732238982737,0.01593126,98351.0,98350.0,0.84539803]
[1732238983036,0.0024,98351.0,98350.0,0.84539803]
[1732238985048,0.0048,98356.0,98355.0,0.050774]
[1732238985252,0.14252,98377.0,98355.0,0.050774]
[1732238985253,0.055566,98370.0,98355.0,0.7808]
[1732238985454,0.055564,98375.0,98366.0,0.3608]
[1732238985746,0.055564,98375.0,98366.0,0.7908]
[1732238985747,0.04490675,98367.0,98366.0,0.7908]
[1732238986141,0.04490675,98367.0,98366.0,0.79359448]
[1732238986743,0.04490675,98367.0,98366.0,0.43279448]
[1732238987745,0.04490675,98367.0,98366.0,0.434191]
[1732238988550,0.04490675,98367.0,98366.0,0.484959]
[1732238988551,0.01350675,98367.0,98366.0,0.484959]
[1732238988943,0.01350675,98367.0,98366.0,0.48399109]
[1732238989149,0.031,98376.0,98366.0,0.48399109]
[1732238989356,0.01346771,98367.0,98366.0,0.66386701]
[1732238989555,0.031,98376.0,98370.0,0.050766]
[1732238989752,0.0133028,98375.0,98370.0,0.470766]
[1732238990051,0.0133028,98374.0,98373.0,0.004191]
[1732238990259,0.0133028,98374.0,98373.0,0.464191]
[1732238992352,0.01290383,98374.0,98373.0,0.464191]
[1732238992847,0.01290383,98374.0,98373.0,0.824991]
[1732238993063,0.031,98376.0,98374.0,0.050764]
[1732238993254,0.3608,98392.0,98377.0,0.050762]
[1732238993458,0.01306217,98378.0,98377.0,0.500762]
[1732238993654,0.01306217,98378.0,98377.0,0.45]
[1732238993957,0.01306217,98378.0,98377.0,0.454191]
[1732238994945,0.01306217,98378.0,98377.0,0.324191]
[1732238995250,0.01306217,98378.0,98377.0,0.49461739]
[1732238998056,0.01306217,98378.0,98377.0,0.23461739]
[1732238998256,0.01306217,98378.0,98377.0,0.50461739]
[1732238998460,0.01306217,98378.0,98377.0,0.38461739]
[1732238998757,0.01306217,98378.0,98377.0,0.23461739]
[1732238998960,0.01306217,98378.0,98377.0,0.45461739]
[1732238999458,0.01328163,98378.0,98377.0,0.45461739]
[1732238999661,0.01328163,98378.0,98377.0,0.81541739]
[1732239001158,0.01328163,98378.0,98377.0,0.45461739]
[1732239001347,0.03457809,98378.0,98377.0,0.45461739]
[1732239001552,0.03457809,98378.0,98377.0,0.34461739]
[1732239001553,0.01328163,98378.0,98377.0,0.34461739]
[1732239001749,0.03457775,98378.0,98377.0,0.70541739]
[1732239002049,0.03457782,98378.0,98377.0,0.34461739]
[1732239002658,0.01328163,98378.0,98377.0,0.34461739]
[1732239004149,0.03443546,98378.0,98377.0,0.34461739]
[1732239004963,0.03443546,98378.0,98377.0,0.51461739]
[1732239005452,0.03443546,98378.0,98377.0,0.41461739]
[1732239006057,0.0514104,98378.0,98377.0,0.184191]
[1732239006253,0.23553405,98378.0,98377.0,0.184191]
[1732239006761,0.23553405,98378.0,98377.0,0.18558736]
[1732239006762,0.23557368,98378.0,98377.0,0.18558736]
[1732239006958,0.59637368,98378.0,98377.0,0.12141435]
[1732239007150,0.81015546,98378.0,98377.0,0.05511435]
[1732239007354,0.95466326,98378.0,98377.0,0.00558736]
[1732239007655,0.95466344,98378.0,98377.0,0.00558736]
[1732239008053,1.13314531,98378.0,98375.0,8.865e-05]
[1732239008255,0.41305996,98377.0,98375.0,8.865e-05]
[1732239008460,0.05099126,98376.0,98375.0,6.5e-07]
[1732239008658,0.36111331,98376.0,98375.0,6.5e-07]
[1732239008851,0.66746108,98376.0,98375.0,6.5e-07]
[1732239009058,0.050769,98364.0,98363.0,0.0024]
[1732239009262,0.050782,98341.0,98340.0,0.050781]
[1732239009562,0.06370039,98341.0,98340.0,0.18191074]
[1732239009760,0.06370039,98341.0,98340.0,0.08]
[1732239009966,0.06370039,98341.0,98340.0,0.0801171]
[1732239010156,0.01291839,98341.0,98340.0,0.0801171]
[1732239010357,0.411581,98342.0,98340.0,0.0801171]
[1732239010568,0.0127389,98341.0,98340.0,0.1308981]
[1732239010754,0.0127389,98341.0,98340.0,0.0801171]
[1732239011156,0.3178189,98341.0,98340.0,0.0801171]
[1732239011462,0.3499189,98341.0,98340.0,0.0801171]
[1732239011654,1.14102785,98341.0,98340.0,0.0801171]
[1732239011859,1.12067318,98341.0,98340.0,0.0801171]
[1732239012055,1.1409823,98341.0,98340.0,0.0801171]
[1732239012254,1.12067318,98341.0,98340.0,0.0801171]
[1732239012460,0.85387318,98341.0,98340.0,0.0801171]
[1732239013267,0.90451556,98341.0,98340.0,0.0801171]
[1732239013874,0.85387318,98341.0,98340.0,0.0801171]
[1732239014482,0.74387318,98341.0,98340.0,0.0801171]
[1732239014685,0.85387318,98341.0,98340.0,0.0801171]
[1732239014992,0.853773,98341.0,98340.0,0.0801171]
[1732239016284,0.84118,98341.0,98340.0,0.0801171]
[1732239016490,0.85378538,98341.0,98340.0,0.0801171]
[1732239017080,0.85378538,98341.0,98340.0,0.0001171]
[1732239017484,0.74578538,98341.0,98340.0,0.0001171]
[1732239017786,0.84318,98341.0,98340.0,0.0001171]
[1732239017985,0.85573907,98341.0,98324.0,0.05101365]
[1732239018192,0.85573907,98341.0,98324.0,0.03]
[1732239018193,0.3608,98326.0,98324.0,0.03]
[1732239018388,0.11,98325.0,98324.0,0.03]
[1732239018783,0.11,98325.0,98324.0,0.15]
[1732239018978,0.160789,98325.0,98324.0,0.15]
[1732239019184,0.160789,98325.0,98324.0,0.15007058]
[1732239019786,0.11,98325.0,98324.0,0.15007058]
[1732239020290,0.002,98325.0,98324.0,0.15007058]
[1732239020485,0.11172,98325.0,98324.0,0.15007058]
[1732239020787,0.11172,98325.0,98324.0,0.27007058]
[1732239021489,0.162509,98325.0,98324.0,0.32086058]
[1732239022092,0.162509,98325.0,98324.0,0.13086058]
[1732239022386,0.162509,98325.0,98324.0,0.26086058]
[1732239022995,0.162509,98325.0,98324.0,0.38086058]
[1732239023382,0.162509,98325.0,98324.0,0.33007058]
[1732239023684,0.11172,98325.0,98324.0,0.03007058]
[1732239023883,0.11172,98325.0,98324.0,0.29007058]
[1732239023884,0.10972,98325.0,98324.0,0.29007058]
[1732239024081,0.11172,98325.0,98324.0,0.18007058]
[1732239024285,0.11172,98325.0,98324.0,0.03007058]
[1732239024486,0.11172,98325.0,98324.0,0.28007058]
[1732239024685,0.002,98325.0,98324.0,0.15007058]
[1732239024898,0.10972,98325.0,98324.0,0.15007058]
[1732239025100,0.11172,98325.0,98324.0,0.15007058]
[1732239025396,0.11172,98325.0,98324.0,0.1514678]
[1732239025590,0.11172,98325.0,98324.0,0.0314678]
[1732239025790,0.11172,98325.0,98324.0,0.0714678]
[1732239026483,0.11172,98325.0,98324.0,0.1514678]
[1732239026686,0.10972,98325.0,98324.0,0.1514678]
[1732239026887,0.11172,98325.0,98324.0,0.1514678]
[1732239027088,0.11172,98325.0,98324.0,0.1614678]
[1732239027283,0.10972,98325.0,98324.0,0.1614678]
[1732239027487,0.11172,98325.0,98324.0,0.1614678]
[1732239028384,0.11172,98325.0,98324.0,0.0414678]
[1732239028591,0.41684,98325.0,98324.0,0.0314678]
[1732239031283,0.30512,98325.0,98324.0,0.0314678]
[1732239031489,0.41684,98325.0,98324.0,0.0314678]
[1732239032296,0.42872932,98325.0,98324.0,0.0314678]
[1732239032888,0.42672932,98325.0,98324.0,0.0314678]
[1732239033084,0.42360932,98325.0,98324.0,0.0314678]
[1732239033382,0.72872932,98325.0,98308.0,0.033]
[1732239033591,0.411598,98309.0,98308.0,0.043]
[1732239033785,0.521358,98309.0,98308.0,0.053]
[1732239033989,0.411598,98309.0,98308.0,0.053]
[1732239034193,0.471358,98309.0,98308.0,0.193]
[1732239034399,0.471358,98309.0,98308.0,0.243798]
[1732239034690,0.42056,98309.0,98308.0,0.323798]
[1732239034895,0.3108,98309.0,98308.0,0.323798]
[1732239035093,0.002,98309.0,98308.0,0.323798]
[1732239035791,0.413598,98309.0,98308.0,0.02]
[1732239035992,0.42543004,98309.0,98308.0,0.01]
[1732239036498,0.42343004,98309.0,98308.0,0.01]
[1732239036892,0.42543004,98309.0,98308.0,0.01]
[1732239037294,0.42343004,98309.0,98308.0,0.01]
[1732239037496,0.42543004,98309.0,98308.0,0.060798]
[1732239037701,0.06463004,98309.0,98308.0,0.060798]
[1732239037889,0.06263004,98309.0,98308.0,0.060798]
[1732239038095,0.06463004,98309.0,98308.0,0.060798]
[1732239038902,0.06468599,98309.0,98308.0,0.310798]
[1732239039498,0.15582481,98309.0,98308.0,0.310798]
[1732239039693,0.06268599,98309.0,98308.0,0.310798]
[1732239039896,0.15582481,98309.0,98308.0,0.310798]
[1732239040404,0.15582481,98309.0,98308.0,0.150798]
[1732239040798,0.06468599,98309.0,98308.0,0.1]
[1732239041002,0.73064599,98309.0,98302.0,0.00056]
[1732239041206,0.73064599,98309.0,98282.0,0.01]
[1732239041207,0.050804,98297.0,98282.0,0.01]
[1732239041502,0.05081,98285.0,98284.0,0.0706]
[1732239041694,0.06269799,98285.0,98284.0,0.20182021]
[1732239041893,0.06269799,98285.0,98284.0,0.15182021]
[1732239042103,0.15385806,98285.0,98284.0,0.15182021]
[1732239042298,0.06269799,98285.0,98284.0,0.15182021]
[1732239043300,0.15379657,98285.0,98284.0,0.15182021]
[1732239043500,0.15579657,98285.0,98284.0,0.15182021]
[1732239044005,0.15579657,98285.0,98284.0,0.26182021]
[1732239044701,0.06469799,98285.0,98284.0,0.26182021]
[1732239045109,0.06469799,98285.0,98284.0,0.34182021]
[1732239046111,0.05281,98285.0,98284.0,0.34182021]
[1732239046605,0.05281,98285.0,98284.0,0.20182021]
[1732239047605,0.06457085,98285.0,98284.0,0.20182021]
[1732239048294,0.15566943,98285.0,98284.0,0.09182021]
[1732239048498,0.05281,98285.0,98284.0,0.09182021]
[1732239049309,0.06456649,98285.0,98284.0,0.19182021]
[1732239049607,0.01375649,98285.0,98284.0,0.35182021]
[1732239049809,0.01375649,98285.0,98284.0,0.40263021]
[1732239050710,0.06456649,98285.0,98284.0,0.35182021]
[1732239052215,0.05281,98285.0,98284.0,0.35182021]
[1732239052412,0.06458024,98285.0,98284.0,0.35182021]
[1732239052606,0.05281,98285.0,98284.0,0.35182021]
[1732239053619,0.01358563,98285.0,98284.0,0.40263021]
[1732239054413,0.10468421,98285.0,98284.0,0.40263021]
[1732239054620,0.01354935,98285.0,98284.0,0.40263021]
[1732239055213,0.002,98285.0,98284.0,0.40263021]
[1732239056318,0.002,98285.0,98284.0,0.40402869]
[1732239059616,0.002,98285.0,98284.0,0.35402869]
[1732239059824,0.002,98285.0,98284.0,0.50402869]
[1732239060810,0.002,98285.0,98284.0,0.45321869]
[1732239061012,0.002,98285.0,98284.0,0.31321869]
[1732239062417,0.002,98285.0,98284.0,0.41321869]
[1732239062808,0.002,98285.0,98284.0,0.28321869]
[1732239063927,0.002,98285.0,98284.0,0.26139848]
[1732239065826,0.002,98285.0,98284.0,0.15139848]
[1732239066235,0.66804,98285.0,98284.0,0.06159848]
[1732239066417,0.66804,98285.0,98260.0,0.0102]
[1732239066418,0.05082,98265.0,98261.0,0.050822]
[1732239066617,0.10948,98264.0,98263.0,0.5008]
[1732239066820,0.47028,98264.0,98263.0,0.14]
[1732239067014,0.47028,98264.0,98263.0,0.09]
[1732239067712,0.47028,98264.0,98263.0,0.1]
[1732239068125,0.47028,98264.0,98263.0,0.09]
[1732239069429,0.47228,98264.0,98263.0,0.09]
[1732239069628,0.47228,98264.0,98263.0,0.11]
[1732239072427,0.47228,98264.0,98250.0,0.0323]
[1732239072622,0.050827,98251.0,98250.0,0.1223]
[1732239072928,0.160307,98251.0,98250.0,0.1323]
[1732239073629,0.160307,98251.0,98250.0,0.2223]
[1732239073932,0.162307,98251.0,98250.0,0.273034]
[1732239075028,0.162307,98251.0,98250.0,0.22369798]
[1732239075325,0.162307,98251.0,98250.0,0.12369798]
[1732239075528,0.162307,98251.0,98250.0,0.09139798]
[1732239076624,0.162307,98251.0,98250.0,0.12139798]
[1732239077631,0.162307,98251.0,98250.0,0.21139798]
[1732239079525,0.052827,98251.0,98250.0,0.21139798]
[1732239079730,0.11116,98251.0,98250.0,0.40139798]
[1732239080125,0.002,98251.0,98250.0,0.46409798]
[1732239081030,0.10916,98259.0,98250.0,0.46409798]
[1732239081235,0.10916,98259.0,98255.0,0.050825]
[1732239081432,0.10916,98259.0,98255.0,0.520825]
[1732239081637,0.10916,98259.0,98258.0,0.050824]
[1732239081938,0.10916,98259.0,98258.0,0.520824]
[1732239082127,0.10916,98259.0,98258.0,0.47139798]
[1732239082326,0.10916,98259.0,98258.0,0.25139798]
[1732239082327,0.159983,98259.0,98258.0,0.25139798]
[1732239082636,0.11016,98259.0,98258.0,0.44139798]
[1732239082938,0.001,98259.0,98258.0,0.44139798]
[1732239083129,0.050823,98259.0,98258.0,0.26139798]
[1732239083437,0.051823,98259.0,98258.0,0.44210797]
[1732239084428,0.001,98259.0,98258.0,0.44210797]
[1732239089132,0.11936,98268.0,98264.0,0.05082]
[1732239089436,0.050817,98272.0,98264.0,0.85162]
[1732239089733,0.10916,98271.0,98264.0,0.85162]
[1732239089937,0.0102,98279.0,98266.0,0.05082]
[1732239090237,0.10916,98276.0,98274.0,0.050815]
[1732239090439,0.10916,98276.0,98275.0,0.063]
[1732239090638,0.10916,98276.0,98275.0,0.503]
[1732239091131,0.10916,98282.0,98276.0,0.050814]
[1732239091338,0.10916,98282.0,98276.0,0.520814]
[1732239091533,0.10916,98282.0,98276.0,0.519814]
[1732239092130,0.10916,98282.0,98279.0,0.00139798]
[1732239092333,0.10916,98282.0,98279.0,0.19139798]
[1732239092334,0.050812,98281.0,98279.0,0.19139798]
[1732239092540,0.050812,98281.0,98279.0,0.33139798]
[1732239093241,0.050812,98281.0,98280.0,0.00139798]
[1732239093540,0.050812,98281.0,98280.0,0.04139798]
[1732239093736,0.717852,98281.0,98280.0,0.00279584]
[1732239093927,0.783952,98281.0,98280.0,0.00279584]
[1732239094129,0.050822,98261.0,98260.0,0.44562306]
[1732239094330,0.159982,98261.0,98260.0,0.4141]
[1732239094529,0.159982,98261.0,98260.0,0.4241]
[1732239094734,0.159982,98261.0,98260.0,0.0633]
[1732239095445,0.520782,98261.0,98260.0,0.0633]
[1732239095643,0.520782,98261.0,98242.0,0.031]
[1732239095937,0.520782,98261.0,98246.0,0.05083]
[1732239095938,0.05083,98247.0,98246.0,0.05083]
[1732239096133,0.050831,98245.0,98243.0,0.0327]
[1732239096327,0.050831,98245.0,98243.0,0.0927]
[1732239096734,0.3608,98246.0,98226.0,0.0315]
[1732239096939,0.050838,98231.0,98229.0,0.050839]
[1732239097139,0.159998,98231.0,98229.0,0.070839]
[1732239098837,0.159998,98231.0,98229.0,0.180839]
[1732239099231,0.160998,98231.0,98229.0,0.180839]
[1732239100137,0.11016,98231.0,98229.0,0.180839]
[1732239100529,0.11016,98231.0,98229.0,0.290839]
[1732239101140,0.11016,98231.0,98230.0,0.3608]
[1732239101448,0.0102,98241.0,98240.0,0.050833]
[1732239101737,0.11936,98252.0,98240.0,0.7608]
[1732239101940,0.0102,98257.0,98250.0,0.3608]
[1732239102244,0.0072,98259.0,98250.0,0.8108]
[1732239103443,0.00252713,98251.0,98250.0,0.8108]
[1732239104647,0.00252713,98251.0,98250.0,0.8417]
[1732239104840,0.00252713,98251.0,98250.0,0.9052]
[1732239105046,0.001,98251.0,98250.0,0.9052]
[1732239105746,0.001,98251.0,98250.0,0.95583829]
[1732239106337,0.001,98251.0,98250.0,1.00666629]
[1732239106744,0.001,98251.0,98250.0,0.95583829]
[1732239106934,0.001,98251.0,98250.0,0.90666629]
[1732239112339,0.001,98251.0,98250.0,0.87416629]
[1732239114542,0.001,98251.0,98250.0,0.61333829]